bitfinex-derivatives/quotes_BTCF0:USTF0_20240929
["timestamp","ask_amount","ask_price","bid_price","bid_amount"]
[1727648852695,0.4235,65759.0,65748.0,0.12]
[1727648852696,0.076018,65758.0,65748.0,0.12]
[1727648852883,0.076018,65758.0,65753.0,0.076022]
[1727648853071,0.076018,65758.0,65754.0,0.076021]
[1727648853276,0.0619,65759.0,65754.0,0.076021]
[1727648853277,0.076018,65757.0,65754.0,0.076021]
[1727648853679,0.0619,65759.0,65752.0,0.12]
[1727648853980,0.001,65749.0,65741.0,0.12]
[1727648854488,0.002,65749.0,65744.0,0.076033]
[1727648854674,0.001,65749.0,65744.0,0.076033]
[1727648854873,0.3608,65747.0,65744.0,0.076033]
[1727648855082,0.031,65746.0,65744.0,0.076033]
[1727648855479,0.03,65745.0,65744.0,0.076033]
[1727648855685,0.03,65745.0,65744.0,0.078033]
[1727648856288,0.03,65745.0,65744.0,0.076033]
[1727648858081,0.03,65745.0,65744.0,0.078033]
[1727648858584,0.0327,65753.0,65752.0,0.076024]
[1727648858787,0.0329,65757.0,65752.0,0.12]
[1727648859092,0.0329,65757.0,65756.0,0.196019]
[1727648861686,0.0429,65757.0,65756.0,0.196019]
[1727648861992,0.0519,65757.0,65756.0,0.196019]
[1727648862885,0.019,65757.0,65756.0,0.196019]
[1727648863389,0.019,65757.0,65756.0,0.652259]
[1727648863586,0.019,65757.0,65756.0,0.71293947]
[1727648863797,0.019,65757.0,65756.0,0.652259]
[1727648864681,0.019,65757.0,65756.0,0.66766419]
[1727648865280,0.3608,65763.0,65756.0,0.71766419]
[1727648865483,0.3608,65769.0,65763.0,0.076011]
[1727648865681,0.0309,65774.0,65771.0,0.076002]
[1727648865887,0.0309,65774.0,65773.0,0.12]
[1727648866092,0.06807503,65774.0,65773.0,0.12]
[1727648866290,0.0309,65774.0,65773.0,0.12]
[1727648866684,0.0309,65774.0,65773.0,0.196]
[1727648867687,0.014,65774.0,65773.0,0.196]
[1727648867889,0.028,65774.0,65773.0,0.197]
[1727648868089,0.028,65774.0,65773.0,0.198]
[1727648868887,0.028,65774.0,65773.0,0.21367759]
[1727648869090,0.028,65774.0,65773.0,0.09367759]
[1727648869501,0.028,65774.0,65773.0,0.01767759]
[1727648870691,0.0591,65774.0,65773.0,0.01767759]
[1727648872687,0.135098,65774.0,65773.0,0.01767759]
[1727648873383,0.076,65773.0,65768.0,0.01550042]
[1727648873609,0.076006,65768.0,65762.0,0.076012]
[1727648873891,0.108607,65767.0,65762.0,0.076012]
[1727648874300,0.0311,65766.0,65763.0,0.076011]
[1727648875091,0.0311,65766.0,65764.0,0.076009]
[1727648875293,0.0311,65766.0,65762.0,0.001]
[1727648875513,0.0376,65767.0,65766.0,0.076008]
[1727648876600,0.0416,65767.0,65766.0,0.076008]
[1727648876989,0.0366,65767.0,65766.0,0.076008]
[1727648877595,0.0506,65767.0,65766.0,0.078008]
[1727648879292,0.126606,65767.0,65766.0,0.078008]
[1727648879488,0.0506,65767.0,65766.0,0.078008]
[1727648879896,0.126606,65767.0,65766.0,0.078008]
[1727648881598,0.018,65767.0,65766.0,0.078008]
[1727648882199,0.018,65767.0,65766.0,0.09388511]
[1727648882695,0.018,65767.0,65766.0,0.10388511]
[1727648883198,0.3608,65769.0,65766.0,0.09388511]
[1727648883405,0.0035,65776.0,65775.0,0.075997]
[1727648883699,0.3608,65782.0,65779.0,0.075993]
[1727648884195,0.3608,65782.0,65780.0,0.12]
[1727648884788,0.075989,65783.0,65780.0,0.12]
[1727648885390,0.014,65782.0,65780.0,0.121]
[1727648886204,0.014,65782.0,65780.0,0.122]
[1727648886903,0.085989,65783.0,65780.0,0.122]
[1727648886904,0.075989,65783.0,65780.0,0.121]
[1727648887101,0.075989,65783.0,65780.0,0.122]
[1727648887102,0.003,65782.0,65780.0,0.122]
[1727648887290,0.003,65782.0,65780.0,0.19799]
[1727648887490,0.003,65782.0,65781.0,0.07599]
[1727648888587,0.00228092,65787.0,65781.0,0.07599]
[1727648888787,0.01,65783.0,65781.0,0.07699]
[1727648889394,0.075987,65784.0,65781.0,0.07699]
[1727648889595,0.01,65782.0,65781.0,0.07799]
[1727648889903,0.01,65782.0,65781.0,0.002]
[1727648890439,0.01,65783.0,65781.0,0.07799]
[1727648890906,0.008,65782.0,65781.0,0.07799]
[1727648891700,0.018,65783.0,65781.0,0.07799]
[1727648891908,0.01,65782.0,65781.0,0.07799]
[1727648892902,0.018,65783.0,65782.0,0.075989]
[1727648894604,0.008,65783.0,65782.0,0.075989]
[1727648894790,0.00228092,65787.0,65781.0,0.001]
[1727648894995,0.00228092,65787.0,65786.0,0.195985]
[1727648895898,0.00228092,65787.0,65786.0,0.227085]
[1727648896395,0.008,65787.0,65786.0,0.260485]
[1727648898095,0.016,65787.0,65786.0,0.261485]
[1727648908397,0.05404581,65787.0,65786.0,0.261485]
[1727648908998,0.016,65787.0,65786.0,0.261485]
[1727648910012,0.00583356,65791.0,65790.0,0.07598]
[1727648910202,0.00583356,65791.0,65790.0,0.19598]
[1727648911509,0.01383356,65791.0,65790.0,0.19698]
[1727648912207,0.01583356,65791.0,65790.0,0.19798]
[1727648914407,0.01583356,65791.0,65790.0,0.2138197]
[1727648916019,0.01583356,65791.0,65790.0,0.5746197]
[1727648917510,0.06011529,65791.0,65790.0,0.5746197]
[1727648917715,0.09825477,65791.0,65790.0,0.5746197]
[1727648920517,0.21932187,65791.0,65790.0,0.5746197]
[1727648920911,0.15130191,65799.0,65795.0,0.075974]
[1727648920912,0.1363156,65796.0,65795.0,0.075974]
[1727648921107,0.0337,65800.0,65796.0,0.075973]
[1727648921108,0.1417212,65798.0,65796.0,0.075973]
[1727648921336,0.0054056,65798.0,65796.0,0.436773]
[1727648922422,0.0335,65797.0,65796.0,0.437773]
[1727648923419,0.21766207,65797.0,65796.0,0.437773]
[1727648923613,0.08134647,65797.0,65796.0,0.437773]
[1727648923818,0.08134647,65797.0,65796.0,0.438773]
[1727648924318,0.0335,65797.0,65796.0,0.438773]
[1727648924721,0.001,65797.0,65796.0,0.438773]
[1727648926922,0.001,65797.0,65796.0,0.448773]
[1727648927316,0.001,65797.0,65796.0,0.438773]
[1727648931127,0.0054056,65798.0,65797.0,0.075972]
[1727648932027,0.0054056,65798.0,65797.0,0.085972]
[1727648932322,0.0054056,65798.0,65797.0,0.075972]
[1727648932526,0.0054056,65798.0,65797.0,0.076972]
[1727648933215,0.0054056,65798.0,65797.0,0.077972]
[1727648936527,0.0054056,65798.0,65797.0,0.438772]
[1727648936827,0.0054056,65798.0,65797.0,0.45460373]
[1727648939226,0.1417212,65798.0,65797.0,0.47836006]
[1727648939425,0.22572453,65798.0,65797.0,0.45460373]
[1727648939729,0.21989854,65798.0,65797.0,0.45460373]
[1727648939934,0.14182728,65798.0,65797.0,0.45460373]
[1727648940120,0.18965493,65798.0,65797.0,0.45460373]
[1727648940316,0.26783227,65798.0,65797.0,0.45460373]
[1727648942638,0.26773931,65798.0,65797.0,0.45460373]
[1727648943937,0.13131763,65798.0,65797.0,0.45460373]
[1727648945150,0.26773931,65798.0,65797.0,0.45460373]
[1727648945533,0.13131763,65798.0,65797.0,0.53460373]
[1727648945744,0.26773931,65798.0,65797.0,0.53460373]
[1727648946653,0.26773931,65798.0,65797.0,0.55836005]
[1727648947342,0.14182728,65798.0,65797.0,0.55836005]
[1727648947647,0.0054056,65798.0,65797.0,0.55836005]
[1727648947844,0.0054056,65798.0,65797.0,0.19756005]
[1727648948152,0.0054056,65798.0,65797.0,0.55836005]
[1727648948537,0.0054056,65798.0,65797.0,0.53460373]
[1727648948850,0.0054056,65798.0,65797.0,0.55836005]
[1727648949237,0.04154556,65798.0,65797.0,0.55836005]
[1727648949435,0.04155061,65798.0,65797.0,0.55836005]
[1727648949836,0.0054056,65798.0,65797.0,0.55836005]
[1727648950641,0.0054056,65798.0,65797.0,0.19756005]
[1727648951046,0.0054056,65798.0,65797.0,0.55836005]
[1727648952653,0.0054056,65798.0,65797.0,0.37863173]
[1727648953149,0.0813766,65798.0,65797.0,0.37863173]
[1727648953848,1.1373366,65798.0,65797.0,0.37863173]
[1727648954040,0.075976,65793.0,65792.0,0.04552116]
[1727648954353,0.075981,65789.0,65788.0,0.06069488]
[1727648954849,0.3608,65789.0,65783.0,0.12138472]
[1727648955150,0.075986,65785.0,65783.0,0.13665698]
[1727648955347,0.0652,65784.0,65783.0,0.13665698]
[1727648955652,0.141187,65784.0,65783.0,0.13665698]
[1727648956948,0.141187,65784.0,65783.0,0.01527226]
[1727648957141,0.141187,65784.0,65781.0,0.07826978]
[1727648957142,0.142187,65784.0,65781.0,0.07826978]
[1727648957753,0.142187,65784.0,65781.0,0.09382102]
[1727648958048,0.142187,65784.0,65782.0,0.075989]
[1727648958249,0.142187,65784.0,65781.0,0.01783102]
[1727648959257,0.03493787,65783.0,65781.0,0.01783102]
[1727648959556,0.142187,65784.0,65781.0,0.01783102]
[1727648960054,0.141187,65784.0,65781.0,0.09482102]
[1727648960546,0.52124,65784.0,65781.0,0.01883102]
[1727648960848,0.45604,65783.0,65781.0,0.01983102]
[1727648961052,0.075989,65782.0,65781.0,0.01883102]
[1727648961555,0.532029,65782.0,65781.0,0.01783102]
[1727648963345,0.533029,65782.0,65781.0,0.01783102]
[1727648963952,0.076989,65782.0,65781.0,0.01783102]
[1727648964545,0.076989,65782.0,65778.0,0.437713]
[1727648964546,0.075993,65779.0,65778.0,0.00092]
[1727648964744,0.075998,65774.0,65773.0,0.075999]
[1727648965182,0.075998,65774.0,65773.0,0.0917652]
[1727648965655,0.438549,65782.0,65769.0,0.12]
[1727648965656,0.076001,65772.0,65769.0,0.12]
[1727648965844,0.076001,65772.0,65769.0,0.13594393]
[1727648966248,0.076001,65772.0,65770.0,0.076002]
[1727648966551,0.0324,65774.0,65773.0,0.076]
[1727648966751,0.108398,65774.0,65773.0,0.076]
[1727648967557,0.108398,65774.0,65773.0,0.08]
[1727648967754,0.108398,65774.0,65773.0,0.084]
[1727648972662,0.075998,65774.0,65773.0,0.084]
[1727648975764,0.075998,65774.0,65769.0,0.104]
[1727648976753,0.075998,65774.0,65773.0,0.076]
[1727648977865,0.075998,65774.0,65773.0,0.08]
[1727648978760,0.075998,65774.0,65773.0,0.084]
[1727648979666,0.075998,65774.0,65773.0,0.164]
[1727648979870,0.075996,65777.0,65776.0,0.075995]
[1727648980266,0.07599,65781.0,65780.0,0.075991]
[1727648980462,0.075986,65785.0,65782.0,0.075989]
[1727648980655,0.075986,65785.0,65780.0,0.08]
[1727648980656,0.075987,65785.0,65784.0,0.075986]
[1727648980959,0.3608,65789.0,65784.0,0.155986]
[1727648981164,0.436781,65789.0,65788.0,0.155982]
[1727648981672,0.3608,65789.0,65788.0,0.155982]
[1727648982560,0.3648,65789.0,65788.0,0.155982]
[1727648983567,0.3648,65789.0,65788.0,0.195982]
[1727648986175,0.3648,65789.0,65788.0,0.21152269]
[1727648989969,0.440781,65789.0,65788.0,0.21152269]
[1727648990478,0.3648,65789.0,65788.0,0.21152269]
[1727648991675,0.440781,65789.0,65788.0,0.21152269]
[1727648992068,0.3648,65789.0,65788.0,0.21152269]
[1727648993266,0.004,65789.0,65788.0,0.57232269]
[1727648995277,0.079981,65789.0,65788.0,0.57232269]
[1727648995481,0.079981,65789.0,65788.0,0.49634069]
[1727648996974,0.079981,65789.0,65788.0,0.57232269]
[1727648997170,0.440781,65789.0,65788.0,0.01554069]
[1727648997475,0.075989,65783.0,65781.0,0.07599]
[1727648998400,0.075989,65783.0,65782.0,0.075989]
[1727648998573,0.36564,65789.0,65780.0,0.20095681]
[1727648998777,0.075983,65787.0,65780.0,0.20095681]
[1727648998972,0.075983,65787.0,65786.0,0.075985]
[1727649000372,0.075983,65787.0,65784.0,0.12]
[1727649000373,0.3608,65789.0,65788.0,0.075982]
[1727649000574,0.436781,65789.0,65788.0,0.075982]
[1727649002672,0.3608,65789.0,65788.0,0.195982]
[1727649003077,0.3648,65789.0,65788.0,0.195982]
[1727649003884,0.0035,65795.0,65788.0,0.195982]
[1727649004076,0.0116066,65800.0,65797.0,0.075972]
[1727649004274,0.0081066,65800.0,65797.0,0.075972]
[1727649004681,0.07597,65799.0,65797.0,0.075972]
[1727649004874,0.0081066,65800.0,65794.0,0.48168]
[1727649005078,0.0081066,65800.0,65794.0,0.3608]
[1727649005283,0.0813766,65798.0,65797.0,0.001]
[1727649006887,0.0813766,65798.0,65797.0,0.077972]
[1727649008471,0.11711594,65798.0,65797.0,0.077972]
[1727649008986,0.0813766,65798.0,65797.0,0.077972]
[1727649009684,0.11719218,65798.0,65797.0,0.077972]
[1727649009885,0.0813766,65798.0,65797.0,0.077972]
[1727649021087,0.0054056,65798.0,65797.0,0.077972]
[1727649021688,0.0054056,65798.0,65797.0,0.1234376]
[1727649021992,0.0054056,65798.0,65797.0,0.077972]
[1727649022293,0.0081066,65800.0,65799.0,0.075969]
[1727649022493,0.0081066,65800.0,65799.0,0.24147185]
[1727649023494,0.0081066,65800.0,65799.0,0.24247271]
[1727649024294,0.0081066,65800.0,65799.0,0.22072342]
[1727649025095,0.0081066,65800.0,65799.0,0.26520558]
[1727649026290,0.0081066,65800.0,65799.0,0.21972342]
[1727649027280,0.0081066,65800.0,65799.0,0.26520558]
[1727649028486,0.0081066,65800.0,65799.0,0.21972342]
[1727649028893,0.00576481,65801.0,65799.0,0.21972342]
[1727649029087,0.01504937,65808.0,65807.0,0.07596]
[1727649029285,0.01504937,65808.0,65807.0,0.55676]
[1727649030083,0.01504937,65808.0,65807.0,0.55776]
[1727649031589,0.01504937,65808.0,65807.0,0.55676]
[1727649033196,0.01504937,65808.0,65807.0,0.91756]
[1727649033586,0.01504937,65808.0,65807.0,0.7216]
[1727649033790,0.01504937,65808.0,65807.0,0.91756]
[1727649034600,0.01504937,65808.0,65807.0,0.93302836]
[1727649039596,0.01504937,65808.0,65807.0,0.89302836]
[1727649040500,0.01504937,65808.0,65807.0,0.90302836]
[1727649042106,0.01504937,65808.0,65807.0,0.89302836]
[1727649042808,0.01504937,65808.0,65807.0,0.90302836]
[1727649043601,0.01035135,65814.0,65811.0,0.075956]
[1727649043804,0.01035135,65814.0,65811.0,0.155956]
[1727649044898,0.01035135,65814.0,65811.0,0.157956]
[1727649046803,0.01035135,65814.0,65811.0,0.002]
[1727649047006,0.09190435,65812.0,65811.0,0.082]
[1727649047396,0.12490435,65812.0,65811.0,0.082]
[1727649049603,0.12490435,65812.0,65811.0,0.002]
[1727649052005,0.16143995,65812.0,65811.0,0.002]
[1727649052211,0.26723592,65812.0,65811.0,0.002]
[1727649054999,0.30960461,65812.0,65811.0,0.002]
[1727649055202,0.20372093,65812.0,65811.0,0.002]
[1727649057519,0.20372093,65812.0,65811.0,0.077956]
[1727649058003,0.16137583,65812.0,65811.0,0.077956]
[1727649058209,0.26739819,65812.0,65811.0,0.077956]
[1727649058510,0.16137583,65812.0,65811.0,0.077956]
[1727649059718,0.20374512,65812.0,65811.0,0.077956]
[1727649060017,0.12490435,65812.0,65811.0,0.077956]
[1727649061817,0.04895035,65812.0,65811.0,0.077956]
[1727649062720,0.12490435,65812.0,65811.0,0.077956]
[1727649065509,0.12490435,65812.0,65807.0,0.01634836]
[1727649065510,0.94154435,65812.0,65807.0,0.01634836]
[1727649065709,0.075959,65808.0,65807.0,0.01546836]
[1727649065930,0.40975035,65812.0,65806.0,0.075961]
[1727649065931,0.07596,65807.0,65806.0,0.075961]
[1727649067219,0.11216914,65807.0,65806.0,0.075961]
[1727649067918,0.11216139,65807.0,65806.0,0.075961]
[1727649068818,0.075963,65805.0,65804.0,0.01566348]
[1727649069006,0.001,65807.0,65802.0,0.195965]
[1727649069319,0.075964,65804.0,65802.0,0.195965]
[1727649069519,0.075964,65804.0,65803.0,0.08]
[1727649069818,0.075964,65804.0,65803.0,0.155965]
[1727649070024,0.002,65805.0,65802.0,0.01526903]
[1727649070211,0.002,65805.0,65798.0,0.3608]
[1727649070212,0.075965,65803.0,65798.0,0.3608]
[1727649070417,0.075969,65799.0,65798.0,0.37653655]
[1727649070627,0.075969,65799.0,65798.0,0.3608]
[1727649070919,0.075976,65793.0,65792.0,0.3608]
[1727649071417,0.075981,65789.0,65787.0,0.075982]
[1727649071725,0.075981,65789.0,65788.0,0.075982]
[1727649071726,0.073981,65789.0,65788.0,0.075982]
[1727649072219,0.071981,65789.0,65788.0,0.075982]
[1727649072808,0.071981,65789.0,65786.0,0.01554487]
[1727649072809,0.075983,65787.0,65786.0,0.01554487]
[1727649073114,0.068986,65785.0,65784.0,0.36176]
[1727649073315,0.068986,65785.0,65784.0,0.3608]
[1727649073828,0.062986,65785.0,65784.0,0.3608]
[1727649074010,0.053986,65785.0,65784.0,0.3608]
[1727649074415,0.053986,65785.0,65784.0,0.3708]
[1727649074618,0.053986,65785.0,65784.0,0.38609404]
[1727649075726,0.054986,65785.0,65784.0,0.39509404]
[1727649076222,0.054986,65785.0,65784.0,0.03429404]
[1727649086326,0.054986,65785.0,65784.0,0.019]
[1727649086327,0.543426,65785.0,65784.0,0.019]
[1727649086636,1.143426,65785.0,65784.0,0.019]
[1727649087225,1.15871532,65785.0,65784.0,0.019]
[1727649087624,1.143426,65785.0,65784.0,0.019]
[1727649087931,1.09044,65785.0,65777.0,0.3643]
[1727649088129,0.075994,65778.0,65777.0,0.3608]
[1727649089121,0.075994,65778.0,65777.0,0.3658]
[1727649089729,0.436794,65778.0,65777.0,0.005]
[1727649089938,0.436794,65778.0,65777.0,0.01]
[1727649090631,0.436794,65778.0,65777.0,0.005]
[1727649090837,0.436794,65778.0,65777.0,0.01]
[1727649092334,0.436794,65778.0,65777.0,0.085995]
[1727649093333,0.436794,65778.0,65777.0,0.01]
[1727649100043,0.075994,65778.0,65777.0,0.01]
[1727649100243,0.075994,65778.0,65777.0,0.085995]
[1727649100542,0.075989,65782.0,65781.0,0.07599]
[1727649100737,0.075989,65782.0,65781.0,0.15599]
[1727649101345,0.075985,65786.0,65784.0,0.075986]
[1727649101544,0.0035,65794.0,65785.0,0.1118]
[1727649101842,0.075976,65793.0,65792.0,0.08]
[1727649102040,0.00228028,65799.0,65792.0,0.155977]
[1727649102041,0.075974,65796.0,65792.0,0.155977]
[1727649102339,0.00228028,65799.0,65792.0,0.075977]
[1727649102340,0.075975,65795.0,65792.0,0.075977]
[1727649102536,0.075975,65795.0,65786.0,0.04546056]
[1727649102731,0.075975,65795.0,65793.0,0.075976]
[1727649102931,0.075975,65795.0,65794.0,0.08]
[1727649103634,0.075975,65795.0,65793.0,0.075976]
[1727649103938,0.082975,65795.0,65794.0,0.001]
[1727649104139,0.082975,65795.0,65794.0,0.002]
[1727649104140,0.094975,65795.0,65794.0,0.002]
[1727649104534,0.087975,65795.0,65794.0,0.001]
[1727649104836,0.091975,65795.0,65794.0,0.076975]
[1727649106435,0.092975,65795.0,65794.0,0.077975]
[1727649112434,0.017,65795.0,65794.0,0.077975]
[1727649114653,0.017,65795.0,65794.0,0.533935]
[1727649115354,0.0035,65803.0,65794.0,1.494735]
[1727649115650,0.0035,65807.0,65806.0,0.075961]
[1727649115844,0.0035,65807.0,65802.0,0.4808]
[1727649115845,0.01595035,65812.0,65803.0,0.0636]
[1727649116855,0.01595035,65812.0,65806.0,0.076961]
[1727649116856,0.006,65807.0,65806.0,0.076961]
[1727649117039,0.02,65807.0,65806.0,0.197961]
[1727649117238,0.014,65807.0,65806.0,0.196961]
[1727649118043,0.02,65807.0,65806.0,0.197961]
[1727649118753,0.006,65807.0,65806.0,0.196961]
[1727649119455,0.006,65807.0,65806.0,0.197961]
[1727649119750,0.01595035,65812.0,65811.0,0.075956]
[1727649119953,0.01595035,65812.0,65811.0,0.556756]
[1727649121041,0.00606485,65815.0,65814.0,0.075952]
[1727649121342,0.01002645,65820.0,65818.0,0.075948]
[1727649121552,0.01002645,65820.0,65818.0,0.195948]
[1727649121751,0.01609956,65822.0,65821.0,0.075944]
[1727649121752,1e-08,65822.0,65821.0,0.075944]
[1727649122060,1e-08,65822.0,65821.0,0.436744]
[1727649124351,1e-08,65822.0,65821.0,0.437744]
[1727649124553,1e-08,65822.0,65821.0,0.45360556]
[1727649124753,1e-08,65822.0,65821.0,0.45460556]
[1727649124754,0.00700001,65822.0,65821.0,0.45460556]
[1727649127663,0.012883,65826.0,65821.0,0.37866156]
[1727649127857,0.012883,65826.0,65825.0,0.075939]
[1727649129661,0.019883,65826.0,65825.0,0.076939]
[1727649130064,0.019883,65826.0,65825.0,0.077939]
[1727649131158,0.00861519,65834.0,65833.0,0.07593]
[1727649131357,0.00861519,65834.0,65833.0,0.55673]
[1727649132163,0.00861519,65834.0,65833.0,0.3608]
[1727649132353,0.00861519,65834.0,65825.0,0.001]
[1727649132354,0.075938,65826.0,65825.0,0.001]
[1727649132556,0.07593,65833.0,65825.0,0.001]
[1727649132557,0.12,65831.0,65825.0,0.001]
[1727649132774,0.0309,65830.0,65828.0,0.12]
[1727649132962,0.0311,65833.0,65829.0,0.075935]
[1727649133269,0.0311,65833.0,65832.0,0.12]
[1727649135061,0.10703,65833.0,65832.0,0.12]
[1727649135268,0.10703,65833.0,65832.0,0.121]
[1727649136260,0.00861519,65834.0,65832.0,0.121]
[1727649136566,0.00861519,65834.0,65832.0,0.122]
[1727649137864,0.00861519,65834.0,65832.0,0.121]
[1727649138174,0.07593,65833.0,65832.0,0.122]
[1727649138470,0.07593,65833.0,65832.0,0.121]
[1727649139381,0.07593,65833.0,65832.0,0.13652231]
[1727649139562,0.07593,65833.0,65832.0,0.09652231]
[1727649140062,0.00861519,65834.0,65833.0,0.07593]
[1727649140859,0.08454419,65834.0,65832.0,0.09652231]
[1727649141067,0.00861519,65834.0,65832.0,0.09752231]
[1727649141263,0.07593,65833.0,65832.0,0.01752231]
[1727649141557,0.07593,65833.0,65821.0,0.3608]
[1727649141558,0.075943,65822.0,65821.0,0.3608]
[1727649141766,0.075945,65820.0,65819.0,0.00227843]
[1727649143370,0.075945,65820.0,65819.0,0.00327843]
[1727649143872,0.075945,65820.0,65819.0,0.07922443]
[1727649144276,0.075945,65820.0,65819.0,0.09465686]
[1727649144966,0.075945,65820.0,65819.0,0.09365686]
[1727649149269,0.075945,65820.0,65819.0,0.13911742]
[1727649149672,0.075945,65820.0,65819.0,0.09365686]
[1727649149872,0.075945,65820.0,65819.0,0.09465686]
[1727649150778,0.436745,65820.0,65819.0,0.01871086]
[1727649151768,0.436745,65820.0,65819.0,0.00327843]
[1727649152275,0.436745,65820.0,65819.0,0.00227843]
[1727649162673,0.436745,65820.0,65818.0,0.09139611]
[1727649162674,0.075946,65819.0,65818.0,0.09139611]
[1727649162874,0.075946,65819.0,65818.0,0.075947]
[1727649163078,0.3608,65820.0,65815.0,0.12]
[1727649163277,0.3608,65820.0,65819.0,0.195946]
[1727649163491,0.436745,65820.0,65819.0,0.195946]
[1727649164986,0.436745,65820.0,65819.0,0.197946]
[1727649165982,0.436745,65820.0,65819.0,0.198946]
[1727649166880,0.436745,65820.0,65819.0,0.21462055]
[1727649168686,0.436745,65820.0,65819.0,0.21362055]
[1727649168985,0.436745,65820.0,65819.0,0.21462055]
[1727649169186,0.0035,65825.0,65819.0,0.13867455]
[1727649169376,0.3608,65826.0,65825.0,0.075939]
[1727649169576,0.3608,65833.0,65824.0,0.12]
[1727649169787,0.075933,65831.0,65830.0,0.075934]
[1727649170672,0.0316,65835.0,65829.0,0.48168]
[1727649170878,0.075934,65830.0,65829.0,0.4808]
[1727649171776,0.08454519,65834.0,65829.0,0.4808]
[1727649171978,0.00861519,65834.0,65833.0,0.19593]
[1727649172679,0.08454419,65834.0,65833.0,0.19593]
[1727649172987,0.08454419,65834.0,65830.0,0.0328]
[1727649173179,0.07593,65833.0,65830.0,0.0328]
[1727649173381,0.07593,65833.0,65832.0,0.075931]
[1727649173880,0.00861519,65834.0,65832.0,0.075931]
[1727649174286,0.08454519,65834.0,65832.0,0.075931]
[1727649174686,0.075932,65832.0,65830.0,0.04735857]
[1727649175690,0.195933,65831.0,65830.0,0.01555857]
[1727649175892,0.075938,65826.0,65825.0,0.36172]
[1727649176088,0.195938,65826.0,65825.0,0.00092]
[1727649176685,0.23289704,65826.0,65818.0,0.0035]
[1727649176993,0.23289704,65826.0,65817.0,0.0328]
[1727649176994,0.075948,65818.0,65817.0,0.0328]
[1727649178717,0.075948,65818.0,65817.0,0.04842866]
[1727649179015,0.075948,65818.0,65817.0,0.04942866]
[1727649179804,0.075948,65818.0,65817.0,0.01862866]
[1727649180205,0.436748,65818.0,65817.0,0.01862866]
[1727649180905,0.436748,65818.0,65817.0,0.003]
[1727649181107,1.4166,65818.0,65804.0,0.075963]
[1727649181305,0.12,65811.0,65807.0,0.37604522]
[1727649181506,0.075959,65808.0,65807.0,0.37604522]
[1727649182823,0.075959,65808.0,65807.0,0.38804522]
[1727649183005,0.075959,65808.0,65807.0,0.47600522]
[1727649184812,0.075959,65808.0,65807.0,0.11520522]
[1727649185210,0.075959,65808.0,65807.0,0.03924522]
[1727649186320,0.075959,65808.0,65807.0,0.024]
[1727649188507,0.075952,65814.0,65808.0,0.075959]
[1727649188714,0.0035,65817.0,65807.0,0.024]
[1727649188715,0.0035,65817.0,65815.0,0.07595]
[1727649188916,0.0035,65817.0,65813.0,0.4808]
[1727649188917,0.075948,65818.0,65814.0,0.0304]
[1727649189118,0.3643,65824.0,65816.0,0.075949]
[1727649189119,0.075949,65817.0,65816.0,0.075949]
[1727649191015,0.075949,65817.0,65816.0,0.078949]
[1727649191524,0.075949,65817.0,65816.0,0.080949]
[1727649191839,0.3608,65824.0,65819.0,0.075946]
[1727649192020,0.075945,65820.0,65819.0,0.075946]
[1727649193722,0.075946,65819.0,65818.0,0.12]
[1727649193920,0.075946,65819.0,65818.0,0.075948]
[1727649194223,0.436741,65824.0,65822.0,0.075943]
[1727649194422,0.436741,65824.0,65822.0,0.075942]
[1727649194723,0.3608,65824.0,65822.0,0.075942]
[1727649195025,0.075945,65820.0,65818.0,0.121]
[1727649195243,0.075945,65820.0,65818.0,0.001]
[1727649196422,0.075945,65820.0,65816.0,0.01550772]
[1727649196625,0.075945,65820.0,65814.0,0.0604]
[1727649196824,0.075945,65820.0,65818.0,0.075947]
[1727649197326,0.075945,65820.0,65819.0,0.075946]
[1727649203718,0.3643,65828.0,65826.0,0.075938]
[1727649203719,0.0035,65828.0,65826.0,0.075938]
[1727649203924,0.075937,65827.0,65826.0,0.075938]
[1727649204432,0.075938,65826.0,65825.0,0.3608]
[1727649206122,0.075938,65826.0,65825.0,0.3618]
[1727649208428,0.075938,65826.0,65825.0,0.3608]
[1727649209637,0.075938,65826.0,65825.0,0.37657608]
[1727649212324,0.075938,65826.0,65825.0,0.45251508]
[1727649212530,0.075934,65830.0,65829.0,0.075934]
[1727649212730,0.075934,65830.0,65829.0,0.195934]
[1727649213738,0.00861519,65834.0,65829.0,0.12]
[1727649213938,0.08454419,65834.0,65833.0,0.3608]
[1727649214241,0.08454419,65834.0,65833.0,0.43673]
[1727649215536,0.08454419,65834.0,65833.0,0.43773]
[1727649215941,0.00861519,65834.0,65833.0,0.55773]
[1727649217648,0.00861519,65834.0,65833.0,1.01341]
[1727649217836,0.01429733,65836.0,65835.0,0.075928]
[1727649218835,0.01429733,65836.0,65835.0,0.107728]
[1727649219039,0.01429733,65836.0,65835.0,0.108728]
[1727649219232,0.01049344,65838.0,65835.0,0.108728]
[1727649219233,0.01049344,65838.0,65837.0,0.075926]
[1727649219429,0.01049344,65838.0,65837.0,0.195926]
[1727649220246,0.01049344,65838.0,65837.0,1.251606]
[1727649220549,0.01049344,65838.0,65837.0,1.252606]
[1727649220837,0.01049344,65838.0,65837.0,0.196926]
[1727649221040,0.01049344,65838.0,65837.0,0.076926]
[1727649221438,0.01049344,65838.0,65837.0,0.077926]
[1727649226633,0.01049344,65838.0,65837.0,0.002]
[1727649226839,0.08641744,65838.0,65837.0,0.002]
[1727649227738,0.01049344,65838.0,65837.0,0.002]
[1727649227939,0.08641744,65838.0,65837.0,0.077926]
[1727649241550,0.01049344,65838.0,65837.0,0.077926]
[1727649241947,0.01049344,65838.0,65837.0,0.108026]
[1727649242349,0.01049344,65838.0,65837.0,1.20916656]